bitfinex/quotes_SOLUSD_20260113
["timestamp","ask_amount","ask_price","bid_price","bid_amount"]
[1768282559963,2.10489473,139.57,139.54,0.70890852]
[1768282560357,7.16383695,139.59,139.54,0.70890852]
[1768282560560,2.10489473,139.57,139.54,0.70890852]
[1768282561063,2.10489473,139.59,139.55,0.70890852]
[1768282562265,7.2801107,139.63,139.56,0.70890852]
[1768282562266,2.10489473,139.6,139.56,0.70890852]
[1768282562675,13.08,139.62,139.56,0.70890852]
[1768282562847,13.84192445,139.63,139.56,0.70890852]
[1768282563046,2.10489473,139.61,139.56,0.70890852]
[1768282563652,7.16181375,139.63,139.57,0.70890852]
[1768282563856,20.00841251,139.64,139.58,0.70890852]
[1768282563857,9.26627687,139.64,139.58,0.70890852]
[1768282564088,2.10489473,139.62,139.58,0.70890852]
[1768282565163,2.10489473,139.62,139.59,0.67077874]
[1768282565669,9.26627687,139.64,139.59,0.67077874]
[1768282565973,2.10489473,139.62,139.59,0.67077874]
[1768282566873,2.10489473,139.63,139.59,0.67077874]
[1768282567071,7.16138214,139.64,139.6,0.67077874]
[1768282567072,2.10489473,139.64,139.6,0.67077874]
[1768282567265,2.10489473,139.61,139.56,30.99268613]
[1768282567474,2.10489473,139.63,139.58,2.10489473]
[1768282568152,16.34753966,139.65,139.58,2.10489473]
[1768282568353,2.10489473,139.63,139.58,2.10489473]
[1768282568555,2.10489473,139.63,139.59,7.1636497]
[1768282568760,2.10489473,139.64,139.59,9.20854448]
[1768282569266,2.10489473,139.64,139.6,0.67077874]
[1768282569474,7.8208851,139.65,139.6,0.61077876]
[1768282569666,2.10489473,139.64,139.6,0.61077876]
[1768282571560,0.6,139.65,139.61,0.67077874]
[1768282571759,2.70489473,139.65,139.61,0.67077874]
[1768282572575,2.10489473,139.65,139.61,0.67077874]
[1768282573272,7.25930864,139.66,139.61,0.67077874]
[1768282573476,0.11999997,139.68,139.62,0.67077874]
[1768282573670,2.10489473,139.67,139.63,0.67077874]
[1768282574072,0.1,139.69,139.65,0.6590432]
[1768282574273,0.75544857,139.69,139.64,2.10489473]
[1768282574658,0.22135865,139.68,139.64,2.10489473]
[1768282575064,2.32625338,139.68,139.63,2.10489473]
[1768282575584,2.7560024,139.67,139.62,2.10489473]
[1768282575972,0.65110767,139.67,139.63,2.10489473]
[1768282576175,0.65110767,139.67,139.63,2.76393793]
[1768282577471,0.65110767,139.67,139.63,3.94441108]
[1768282577655,0.65110767,139.67,139.63,11.10603588]
[1768282577858,7.48016459,139.69,139.65,0.6590432]
[1768282578082,7.48016459,139.69,139.65,3.94441108]
[1768282578083,0.32135865,139.69,139.65,3.94441108]
[1768282578264,0.32135865,139.69,139.65,0.6590432]
[1768282578464,0.32135865,139.69,139.65,3.94441108]
[1768282578666,3.60672653,139.69,139.65,0.6590432]
[1768282579064,3.60672653,139.69,139.65,7.81971418]
[1768282579265,0.32135865,139.69,139.65,11.10508206]
[1768282580288,0.32135865,139.69,139.65,3.94441108]
[1768282582772,0.32135865,139.69,139.65,0.6590432]
[1768282582981,0.32135865,139.69,139.65,3.94441108]
[1768282584395,3.60672653,139.69,139.65,0.6590432]
[1768282585479,0.32135865,139.69,139.65,3.94441108]
[1768282585882,0.1,139.69,139.66,0.6590432]
[1768282586092,0.1,139.69,139.66,3.94441108]
[1768282586403,0.1,139.69,139.66,0.6590432]
[1768282587180,0.1,139.69,139.66,3.94441108]
[1768282587381,0.1,139.69,139.66,0.6590432]
[1768282589679,0.1,139.69,139.67,0.6590432]
[1768282589880,0.1,139.69,139.66,0.6590432]
[1768282590898,0.75110767,139.69,139.66,0.6590432]
[1768282593678,0.1,139.69,139.66,0.6590432]
[1768282598603,0.65110767,139.68,139.65,0.68961286]
[1768282598801,4.05074294,139.69,139.65,0.68961286]
[1768282599601,0.76537506,139.69,139.65,0.68961286]
[1768282599993,4.05074294,139.69,139.65,0.68961286]
[1768282600389,0.76537506,139.69,139.65,3.97498074]
[1768282601282,0.1,139.69,139.66,3.97498074]
[1768282601689,0.1,139.69,139.67,0.68961286]
[1768282606002,0.1,139.69,139.67,0.62961288]
[1768282606203,0.1,139.71,139.68,3.28536788]
[1768282606410,0.1,139.71,139.69,3.28536788]
[1768282608102,0.1,139.71,139.7,0.68961286]
[1768282608689,0.66537506,139.74,139.71,0.68961286]
[1768282608907,0.66537506,139.74,139.71,3.97498074]
[1768282609412,0.66537506,139.74,139.71,0.68961286]
[1768282610191,3.95074294,139.74,139.71,0.68961286]
[1768282610895,0.66537506,139.74,139.71,0.68961286]
[1768282611211,3.95074294,139.74,139.71,0.68961286]
[1768282612311,0.66537506,139.74,139.71,0.68961286]
[1768282612513,3.95074294,139.74,139.71,0.68961286]
[1768282615013,8.42057146,139.76,139.72,0.68961286]
[1768282615314,0.66537506,139.75,139.71,3.28536788]
[1768282616212,0.66537506,139.74,139.7,10.44348024]
[1768282617108,0.66537506,139.74,139.7,11.1330931]
[1768282618296,0.66537506,139.74,139.71,0.68961286]
[1768282618516,0.66537506,139.74,139.7,11.1330931]
[1768282618714,0.66537506,139.74,139.71,0.68961286]
[1768282619008,0.66537506,139.74,139.71,3.97498074]
[1768282619531,0.66537506,139.74,139.7,0.68961286]
[1768282619811,0.66537506,139.73,139.7,0.68961286]
[1768282623409,0.66537506,139.72,139.68,0.68961286]
[1768282623702,3.95074294,139.71,139.67,0.68961286]
[1768282623909,3.95074294,139.69,139.65,0.68961286]
[1768282624103,0.66537506,139.69,139.65,3.97498074]
[1768282624419,3.95074294,139.7,139.66,0.68961286]
[1768282624716,0.66537506,139.7,139.66,0.68961286]
[1768282625016,0.66537506,139.7,139.67,0.71123161]
[1768282625222,0.66537506,139.7,139.66,0.71123161]
[1768282625401,0.71939732,139.69,139.65,3.99659949]
[1768282627041,0.71939732,139.69,139.65,11.15720849]
[1768282627701,0.71939732,139.69,139.65,7.87184061]
[1768282627900,0.71939732,139.69,139.65,11.15720849]
[1768282628296,4.0047652,139.69,139.64,11.15771688]
[1768282628508,4.0047652,139.69,139.62,17.9053611]
[1768282628509,0.71939732,139.66,139.62,17.07659949]
[1768282628828,0.68939732,139.66,139.62,24.23883002]
[1768282629129,10.44461613,139.68,139.63,0.71123161]
[1768282629307,3.28536788,139.69,139.64,0.71123161]
[1768282630309,3.28536788,139.68,139.64,0.71123161]
[1768282630617,4.0047652,139.68,139.64,0.71123161]
[1768282631113,0.71939732,139.67,139.64,0.71123161]
[1768282631313,0.71939732,139.68,139.64,11.1575789]
[1768282633602,0.71939732,139.68,139.65,0.71123161]
[1768282635407,3.96502045,139.69,139.65,0.71123161]
[1768282637914,3.28536788,139.68,139.65,0.71123161]
[1768282639421,2.10243855,139.68,139.65,0.71123161]
[1768282639725,0.67965257,139.67,139.63,0.67930686]
[1768282640022,2.78209112,139.67,139.63,0.67930686]
[1768282640228,0.67965257,139.67,139.63,0.67930686]
[1768282640519,0.67965257,139.67,139.64,0.67930686]
[1768282642123,7.15900044,139.69,139.65,0.67930686]
[1768282642124,0.67965257,139.68,139.65,0.67930686]
[1768282642333,2.10243855,139.69,139.65,0.67930686]
[1768282642633,2.78209112,139.69,139.65,0.67930686]
[1768282644634,0.67965257,139.69,139.66,0.67930686]
[1768282644828,2.78209112,139.69,139.66,0.67930686]
[1768282647338,2.78209112,139.69,139.65,9.94246504]
[1768282648530,0.67965257,139.69,139.65,9.94246504]
[1768282648740,2.78209112,139.69,139.65,9.94246504]
[1768282649433,2.78209112,139.69,139.66,0.67930686]
[1768282650112,0.67965257,139.69,139.66,0.67930686]
[1768282650329,2.78209112,139.7,139.66,0.67930686]
[1768282650932,0.67965257,139.7,139.66,2.78174541]
[1768282651355,0.67965257,139.72,139.68,2.78174541]
[1768282651513,0.67965257,139.72,139.66,20.24010307]
[1768282651514,0.67965257,139.72,139.69,2.10243855]
[1768282652243,0.67965257,139.72,139.68,2.10243855]
[1768282653015,0.67965257,139.72,139.68,9.26164184]
[1768282653237,0.67965257,139.72,139.69,2.10243855]
[1768282654728,0.66374523,139.71,139.68,2.10243855]
[1768282655317,0.66374523,139.71,139.67,7.15969787]
[1768282655520,0.66374523,139.71,139.68,2.10243855]
[1768282656951,9.2592818,139.73,139.69,0.70679863]
[1768282656952,9.92302703,139.73,139.69,0.70679863]
[1768282657252,2.76618378,139.73,139.69,2.80923718]
[1768282658947,0.66374523,139.73,139.69,2.80923718]
[1768282659133,2.76618378,139.73,139.69,2.80923718]
[1768282659849,2.76618378,139.73,139.7,0.70679863]
[1768282660044,2.10243855,139.74,139.7,0.70679863]
[1768282660221,2.10243855,139.74,139.71,0.70679863]
[1768282660622,2.76360444,139.74,139.71,0.70679863]
[1768282661115,0.6,139.75,139.72,0.70679863]
[1768282661339,0.66374523,139.74,139.71,2.10243855]
[1768282662447,0.66374523,139.74,139.7,9.2605384]
[1768282662948,2.56765021,139.73,139.67,7.15925552]
[1768282663120,0.46521166,139.73,139.69,2.10243855]
[1768282663325,0.46521166,139.73,139.7,0.70679863]
[1768282663525,9.92237887,139.74,139.7,0.70679863]
[1768282664429,0.66374523,139.74,139.71,0.70679863]
[1768282665745,9.92195461,139.75,139.71,0.70679863]
[1768282666135,7.81951606,139.75,139.71,0.70679863]
[1768282666324,9.92195461,139.75,139.71,0.70679863]
[1768282669347,0.46521166,139.74,139.7,2.80923718]
[1768282669526,2.56765021,139.74,139.71,0.70679863]
[1768282669727,0.46521166,139.74,139.71,0.70679863]
[1768282670023,9.92195461,139.75,139.71,0.70679863]
[1768282674053,2.10243855,139.74,139.71,0.70679863]
[1768282674844,9.92195461,139.75,139.71,0.70679863]
[1768282675362,2.56765021,139.74,139.7,2.80923718]
[1768282675964,2.56765021,139.74,139.71,0.70679863]
[1768282678363,0.66175989,139.73,139.7,0.70679863]
[1768282678540,0.46717714,139.72,139.69,0.70679863]
[1768282679142,2.10243855,139.73,139.69,0.70679863]
[1768282679358,9.92247618,139.74,139.7,0.70679863]
[1768282680039,2.76419844,139.72,139.68,0.70679863]
[1768282680570,0.66175989,139.72,139.69,0.70679863]
[1768282680972,2.76618378,139.73,139.69,0.70679863]
[1768282683968,2.56765021,139.72,139.68,0.70679863]
[1768282684166,2.76419844,139.71,139.67,0.70679863]
[1768282684372,2.56961569,139.7,139.66,0.70679863]
[1768282685866,2.10243855,139.71,139.68,0.67003183]
[1768282688568,2.10243855,139.7,139.68,0.67003183]
[1768282688749,2.75423736,139.7,139.66,0.67003183]
[1768282688950,2.75423736,139.7,139.67,0.67003183]
[1768282689156,2.10243855,139.7,139.67,0.67003183]
[1768282689448,2.10243855,139.71,139.67,0.67003183]
[1768282689660,2.10243855,139.7,139.67,0.67003183]
[1768282690744,9.91333371,139.72,139.67,0.67003183]
[1768282690944,2.10243855,139.7,139.67,0.67003183]
[1768282694472,0.47703861,139.69,139.65,0.68364817]
[1768282694770,0.66688391,139.71,139.65,0.68364817]
[1768282694962,2.10243855,139.69,139.65,0.68364817]
[1768282695672,2.10243855,139.69,139.66,0.68364817]
[1768282696675,2.56454291,139.7,139.66,0.68364817]
[1768282696873,2.10243855,139.7,139.66,0.68364817]
[1768282697078,2.10243855,139.7,139.67,0.68364817]
[1768282698667,2.56454291,139.7,139.67,0.68364817]
[1768282699557,2.10243855,139.7,139.67,0.68364817]
[1768282701369,3.28405567,139.7,139.67,0.68364817]
[1768282702184,3.94889179,139.69,139.65,7.84421598]
[1768282702479,3.94889179,139.69,139.66,0.68364817]
[1768282703483,0.66483612,139.69,139.66,0.68364817]
[1768282704983,3.95093958,139.7,139.66,0.68364817]
[1768282705570,3.28405567,139.7,139.66,0.68364817]
[1768282707567,3.74616003,139.7,139.66,0.68364817]
[1768282709000,0.46210436,139.7,139.66,0.68364817]
[1768282709370,3.74616003,139.7,139.66,0.68364817]
[1768282711091,0.46210436,139.7,139.67,0.68364817]
[1768282711472,0.66483612,139.7,139.66,11.12792552]
[1768282711986,0.66483612,139.7,139.66,10.44427735]
[1768282712182,0.66483612,139.7,139.67,0.68364817]
[1768282715983,0.66483612,139.7,139.66,0.6984746]
[1768282715984,3.28405567,139.69,139.66,0.6984746]
[1768282716286,0.46413168,139.69,139.66,0.6984746]
[1768282716488,3.74818735,139.69,139.66,0.6984746]
[1768282716792,0.46413168,139.69,139.66,0.6984746]
[1768282717793,3.98419252,139.7,139.66,0.6984746]
[1768282719795,3.28405567,139.69,139.66,0.6984746]
[1768282720496,3.28405567,139.69,139.66,7.85866946]
[1768282722591,3.28405567,139.69,139.67,0.6984746]
[1768282723297,0.70013685,139.71,139.67,0.6984746]
[1768282723494,3.28405567,139.69,139.67,0.6984746]
[1768282724793,3.98148299,139.69,139.66,7.85853141]
[1768282724965,3.28405567,139.69,139.67,0.6984746]
[1768282727295,3.28405567,139.68,139.67,0.6984746]
[1768282728199,3.28405567,139.69,139.67,0.6984746]
[1768282728500,3.28405567,139.68,139.66,0.6984746]
[1768282728803,0.42918395,139.69,139.66,0.6984746]
[1768282729303,0.69742732,139.68,139.65,0.6984746]
[1768282729994,0.69742732,139.68,139.65,3.98253027]
[1768282730378,0.69742732,139.68,139.65,11.14319655]
[1768282731181,0.70013685,139.69,139.66,0.6984746]
[1768282735201,0.70013685,139.69,139.65,10.44472195]
[1768282735384,0.70013685,139.69,139.65,11.14319655]
[1768282735692,0.70013685,139.69,139.66,0.6984746]
[1768282740706,0.70013685,139.71,139.67,0.6984746]
[1768282740897,0.42918395,139.7,139.67,0.6984746]
[1768282741106,3.71323962,139.7,139.67,0.6984746]
[1768282741998,3.98419252,139.71,139.67,0.6984746]
[1768282742403,3.28405567,139.7,139.67,0.6984746]
[1768282744106,3.28405567,139.71,139.68,0.6984746]
[1768282745406,3.28405567,139.7,139.68,0.6984746]
[1768282745591,0.42918395,139.71,139.68,0.6984746]
[1768282745791,3.28405567,139.7,139.68,0.6984746]
[1768282747089,3.28405567,139.69,139.68,0.6984746]
[1768282749309,3.28405567,139.7,139.68,0.6984746]
[1768282758399,7.81659514,139.72,139.68,0.6984746]
[1768282758600,3.28405567,139.71,139.68,0.6984746]
[1768282759216,3.75357227,139.71,139.68,0.6984746]
[1768282760133,3.28405567,139.7,139.68,0.6984746]
[1768282760624,3.94155367,139.7,139.66,7.83398601]
[1768282760830,3.94155367,139.68,139.65,7.16060344]
[1768282761007,0.47139642,139.67,139.65,7.16060344]
[1768282761205,3.28405567,139.68,139.65,7.83453622]
[1768282761413,3.75357227,139.68,139.65,7.83453622]
[1768282761630,3.28405567,139.66,139.64,0.67393278]
[1768282761928,3.28405567,139.67,139.64,7.83515916]
[1768282762322,3.75357227,139.68,139.65,0.67393278]
[1768282763227,0.4695166,139.68,139.65,0.67393278]
[1768282763428,2.57195569,139.68,139.65,0.67393278]
[1768282764631,2.10243909,139.67,139.65,0.67393278]
[1768282766230,2.10243909,139.67,139.65,7.83468686]
[1768282766534,2.57195569,139.68,139.65,7.83468686]
[1768282766711,2.10243909,139.69,139.66,0.67393278]
[1768282767335,2.10243909,139.68,139.66,0.67393278]
[1768282769824,2.10243909,139.67,139.65,0.67393278]
[1768282770131,2.10243909,139.66,139.63,20.24159934]
[1768282770332,2.10243909,139.65,139.63,20.24159934]
[1768282770514,0.6593968,139.66,139.63,20.24159934]
[1768282770824,0.6593968,139.66,139.62,7.16228503]
[1768282771033,2.10243909,139.63,139.62,7.16228503]
[1768282771218,2.10243909,139.64,139.62,7.16228503]
[1768282771619,2.10243909,139.63,139.61,7.16280635]
[1768282771830,2.10243909,139.64,139.61,7.16280635]
[1768282772132,2.76183589,139.65,139.62,0.67393278]
[1768282772627,2.10243909,139.64,139.62,0.67393278]
[1768282775531,2.10243909,139.65,139.63,0.68846598]
[1768282780515,2.76088449,139.65,139.62,7.85071445]
[1768282780739,2.10243909,139.66,139.62,0.68846598]
[1768282781356,0.6584454,139.7,139.64,2.10243909]
[1768282781531,2.10243909,139.69,139.64,0.68846598]
[1768282781725,2.76088449,139.69,139.66,0.68846598]
[1768282782423,2.10243909,139.69,139.66,0.68846598]
[1768282786439,2.10243909,139.7,139.66,0.68846598]
[1768282786946,2.76088449,139.7,139.66,0.68846598]
[1768282789462,2.76088449,139.7,139.66,7.84854796]
[1768282789755,2.76088449,139.7,139.66,0.68846598]
[1768282794449,2.76088449,139.69,139.66,0.68846598]
[1768282795952,2.10243909,139.69,139.66,0.68846598]
[1768282796132,2.76088449,139.7,139.66,0.68846598]
[1768282796333,2.10243909,139.69,139.66,0.68846598]
[1768282797725,2.76088449,139.69,139.66,0.68846598]
[1768282798448,0.6584454,139.69,139.66,0.68846598]
[1768282798649,2.76088449,139.69,139.66,0.68846598]
[1768282799754,0.6584454,139.68,139.65,7.84914925]
[1768282800229,0.6584454,139.7,139.67,2.10243909]
[1768282800430,0.6584454,139.7,139.66,2.10243909]
[1768282800831,2.76088449,139.71,139.66,15.18243909]
[1768282801961,2.76088449,139.71,139.68,0.68846598]
[1768282803158,2.76088449,139.69,139.66,0.68846598]
[1768282803361,2.76088449,139.68,139.65,13.76846598]
[1768282803666,2.10243909,139.69,139.65,13.76846598]
[1768282803841,2.76088449,139.69,139.66,0.68846598]
[1768282804233,2.10243909,139.68,139.65,13.76846598]
[1768282804762,2.8046942,139.68,139.65,13.76846598]
[1768282805143,2.10243909,139.66,139.64,0.66771045]
[1768282805543,2.8046942,139.67,139.64,0.66771045]
[1768282806966,0.70225511,139.67,139.64,0.66771045]
[1768282807179,2.8046942,139.67,139.62,15.18243909]
[1768282807363,0.70225511,139.64,139.6,0.66771045]
[1768282807565,2.10243909,139.63,139.6,0.66771045]
[1768282808063,0.70225511,139.64,139.58,0.66771045]
[1768282808064,2.10243909,139.61,139.58,0.66771045]
[1768282808767,2.10243909,139.61,139.58,7.8319404]
[1768282808955,2.10243909,139.6,139.58,0.66771045]
[1768282809471,2.8046942,139.61,139.58,7.83200767]
[1768282810562,2.10243909,139.6,139.58,7.83200767]
[1768282811255,2.8046942,139.61,139.58,7.83200767]
[1768282811462,2.10243909,139.61,139.58,7.83200767]
[1768282812464,0.70225511,139.62,139.58,7.83200767]
[1768282812667,2.10243909,139.61,139.58,7.83200767]
[1768282812868,2.8046942,139.61,139.58,7.83200767]
[1768282814162,0.72277372,139.63,139.59,0.713724]
[1768282814371,0.72277372,139.63,139.59,13.793724]
[1768282814693,2.82521281,139.63,139.59,13.793724]
[1768282815567,2.82521281,139.63,139.59,20.95730821]
[1768282816361,2.10243909,139.62,139.59,20.95730821]
[1768282816669,2.82521281,139.62,139.59,20.95730821]
[1768282816872,0.72277372,139.62,139.59,20.95730821]
[1768282817567,2.82521281,139.62,139.59,20.95730821]
[1768282818764,2.82521281,139.62,139.59,13.08]
[1768282818968,2.82521281,139.62,139.59,13.793724]
[1768282819471,2.10243909,139.64,139.57,7.87841636]
[1768282819472,2.82521281,139.6,139.57,7.87841636]
[1768282819762,2.07243909,139.6,139.58,0.713724]
[1768282820762,2.07243909,139.6,139.57,7.87841636]
[1768282821373,2.10243909,139.6,139.57,7.87841636]
[1768282821570,2.82521281,139.61,139.57,7.87841636]
[1768282823372,2.10243909,139.61,139.58,0.713724]
[1768282823672,2.82521281,139.62,139.58,0.713724]
[1768282824047,2.82521281,139.61,139.58,0.713724]
[1768282824973,2.82521281,139.61,139.58,7.87772186]
[1768282825365,0.72277372,139.61,139.58,7.87772186]
[1768282825752,4.01072584,139.61,139.58,7.87772186]
[1768282826470,0.72277372,139.61,139.58,7.87772186]
[1768282826677,4.01072584,139.61,139.58,7.87772186]
[1768282827384,0.72277372,139.63,139.59,0.713724]
[1768282827668,4.01072584,139.65,139.61,0.713724]
[1768282827870,0.72277372,139.65,139.62,0.713724]
[1768282828455,0.72277372,139.65,139.62,7.87555274]
[1768282830180,0.72277372,139.66,139.63,0.713724]
[1768282831481,0.72277372,139.66,139.64,7.16127184]
[1768282832361,0.72277372,139.69,139.65,0.713724]
[1768282832777,0.72277372,139.69,139.65,4.00167612]
[1768282833692,0.72277372,139.69,139.66,7.87397031]
[1768282835093,0.68532026,139.7,139.67,0.66054159]
[1768282835283,0.68532026,139.7,139.66,10.44819843]
[1768282835284,0.68532026,139.7,139.66,11.10874002]
[1768282836182,0.68532026,139.7,139.67,7.82027004]
[1768282837378,0.68532026,139.7,139.67,0.66054159]
[1768282838294,0.68532026,139.7,139.67,7.8200773]
[1768282840097,0.68532026,139.7,139.67,7.76280007]
[1768282840290,3.97327238,139.71,139.67,7.76280007]
[1768282840600,3.28795212,139.7,139.67,0.60326436]
[1768282840807,0.68532026,139.68,139.65,13.08]
[1768282841102,3.97327238,139.68,139.65,13.08]
[1768282841407,0.68532026,139.67,139.65,13.08]
[1768282843913,3.97327238,139.67,139.65,13.08]
[1768282845210,0.68532026,139.67,139.64,7.82172935]
[1768282845821,0.68532026,139.67,139.64,0.66054159]
[1768282846108,3.97327238,139.67,139.63,13.74054159]
[1768282846295,3.97327238,139.67,139.54,35.68452075]
[1768282846296,3.97327238,139.64,139.61,0.66054159]
[1768282846512,3.28795212,139.63,139.61,0.66054159]
[1768282846687,3.28795212,139.63,139.6,0.66054159]
[1768282846888,3.97327238,139.64,139.6,0.66054159]
[1768282847590,3.97327238,139.64,139.6,7.82381074]
[1768282849110,3.97327238,139.63,139.6,7.82381074]
[1768282851200,3.28795212,139.62,139.6,7.82381074]
[1768282854008,3.97327238,139.61,139.59,20.24369486]
[1768282854418,3.28795212,139.61,139.59,20.90423645]
[1768282856612,3.97327238,139.62,139.59,20.90423645]
[1768282856798,0.68532026,139.62,139.59,20.90423645]
[1768282857123,3.97327238,139.62,139.59,20.90423645]
[1768282859823,3.28795212,139.61,139.59,13.74054159]
[1768282860115,3.28795212,139.61,139.59,13.08]
[1768282861424,3.28795212,139.61,139.58,7.82484476]
[1768282861618,3.28795212,139.61,139.59,0.66054159]
[1768282863924,3.28795212,139.61,139.59,7.82437815]
[1768282864125,3.97327238,139.62,139.59,7.82437815]
[1768282865129,3.97327238,139.62,139.59,0.66054159]
[1768282866115,0.68532026,139.62,139.59,0.66054159]
[1768282866316,3.97327238,139.62,139.59,0.66054159]
[1768282867237,3.28795212,139.61,139.59,0.66054159]
[1768282867427,3.25795213,139.61,139.59,0.66054159]
[1768282871131,3.25795213,139.61,139.59,7.82435711]
[1768282872116,3.25795213,139.61,139.59,0.66054159]
[1768282872732,0.71861214,139.6,139.58,20.24418148]
[1768282872930,3.97656427,139.59,139.56,7.84301245]
[1768282873125,3.28795212,139.58,139.56,7.16500085]
[1768282874839,3.9680002,139.58,139.56,7.16500085]
[1768282876121,3.9680002,139.58,139.55,13.7580116]
[1768282876322,3.9680002,139.57,139.54,8.02751969]
[1768282876510,3.9680002,139.57,139.54,21.10751969]
[1768282877251,3.9680002,139.57,139.55,7.16583207]
[1768282878641,0.68004808,139.57,139.55,7.16583207]
[1768282878944,3.9680002,139.58,139.55,7.82731389]
[1768282879642,3.28795212,139.58,139.56,0.66148182]
[1768282880332,3.25795213,139.58,139.56,0.66148182]
[1768282882650,3.25795213,139.58,139.55,7.16583207]
[1768282882822,3.9680002,139.57,139.54,21.1077034]
[1768282883542,3.28795212,139.56,139.54,21.1077034]
[1768282883719,3.28795212,139.56,139.54,13.94148182]
[1768282883922,3.28795212,139.56,139.54,21.10787776]
[1768282884218,3.9680002,139.57,139.54,21.10787776]
[1768282884843,3.28795212,139.56,139.54,21.10787776]
[1768282885450,2.10567423,139.56,139.54,21.10787776]
[1768282886234,0.68004808,139.57,139.54,21.10787776]
[1768282886432,0.68004808,139.58,139.54,20.44639594]
[1768282886744,2.78572231,139.58,139.55,0.66148182]
[1768282887550,2.78572231,139.58,139.55,7.82707056]
[1768282887750,2.78572231,139.6,139.56,0.66148182]
[1768282888048,2.10567423,139.61,139.58,0.66148182]
[1768282888748,2.10567423,139.6,139.58,0.66148182]
[1768282888944,2.10567423,139.61,139.58,0.66148182]
[1768282889146,2.78572231,139.61,139.58,7.82541509]
[1768282889338,2.10567423,139.6,139.58,7.82541509]
[1768282890441,2.10567423,139.6,139.59,0.66148182]
[1768282890628,2.10567423,139.6,139.58,7.82541509]
[1768282892047,2.10567423,139.6,139.58,0.66148182]
[1768282892438,2.78572231,139.59,139.56,0.66148182]
[1768282892636,2.78572231,139.58,139.55,20.9070098]
[1768282893946,2.10567423,139.56,139.53,7.16656803]
[1768282895355,0.68004808,139.57,139.53,7.16656803]
[1768282895556,2.10567423,139.56,139.54,7.16635068]
[1768282896457,2.10567423,139.56,139.53,7.70039029]
[1768282897268,0.68004808,139.57,139.53,7.70039029]
[1768282897445,2.10567423,139.56,139.53,7.70039029]
[1768282897855,2.10567423,139.55,139.53,7.70039029]
[1768282898052,2.0056742,139.55,139.53,7.70039029]
[1768282898360,0.69003535,139.56,139.53,7.16673811]
[1768282898539,2.10567423,139.55,139.53,7.16673811]
[1768282899139,2.79570958,139.56,139.53,7.16673811]
[1768282900056,0.69003535,139.56,139.53,7.16673811]
[1768282900254,2.10567423,139.56,139.53,7.70039029]
[1768282902263,0.69003535,139.57,139.53,7.70039029]
[1768282902448,2.10567423,139.56,139.53,7.70039029]
[1768282903159,2.79570958,139.57,139.53,7.70039029]
[1768282903537,2.10567423,139.56,139.53,7.70039029]
[1768282907167,0.69003535,139.57,139.53,7.70039029]
[1768282907358,2.10567423,139.56,139.53,7.70039029]
[1768282908263,2.10567423,139.56,139.53,20.78039029]
[1768282912459,0.69003535,139.55,139.53,20.24673811]
[1768282912875,2.79570958,139.56,139.53,20.24673811]
[1768282913249,2.79570958,139.56,139.53,20.78039029]
[1768282915761,0.69003535,139.56,139.53,20.78039029]
[1768282916258,2.79570958,139.58,139.54,0.53365218]
[1768282916771,0.69003535,139.57,139.54,0.53365218]
[1768282917167,0.69003535,139.57,139.54,7.69966468]
[1768282920173,0.69003535,139.56,139.54,7.1660125]
[1768282921454,0.69003535,139.56,139.54,20.2460125]
[1768282923775,0.69003535,139.57,139.54,20.2460125]
[1768282925057,0.66573865,139.58,139.55,0.53365218]
[1768282925255,2.77141288,139.58,139.55,0.53365218]
[1768282925683,0.66573865,139.58,139.55,7.69926659]
[1768282926175,2.77141288,139.58,139.55,7.69926659]
[1768282926779,2.77141288,139.58,139.55,7.16561441]
[1768282927574,0.66573865,139.56,139.54,20.24625175]
[1768282928574,0.66573865,139.57,139.54,20.24625175]
[1768282929767,0.66573865,139.57,139.54,20.77990393]
[1768282932779,0.66573865,139.57,139.54,40.26793572]
[1768282933380,0.66573865,139.57,139.54,40.8015879]
[1768282933780,2.10567423,139.6,139.56,7.16537689]
[1768282933982,2.10567423,139.61,139.56,9.93199028]
[1768282934369,2.10567423,139.6,139.56,7.82631605]
[1768282935272,7.16178802,139.63,139.56,25.73975829]
[1768282935587,2.10567423,139.6,139.56,25.73975829]
[1768282935767,0.6645224,139.59,139.56,25.73975829]
[1768282936489,2.77019663,139.59,139.56,25.73975829]
[1768282936660,0.6645224,139.59,139.56,25.73975829]
[1768282944103,0.6645224,139.57,139.56,7.16537689]
[1768282947303,3.28921024,139.59,139.56,7.16537689]
[1768282947488,3.28921024,139.59,139.56,7.82631605]
[1768282948700,3.28921024,139.59,139.56,7.76631605]
[1768282948893,3.28921024,139.59,139.55,7.82682952]
[1768282949406,0.6645224,139.59,139.55,29.03076566]
[1768282949783,0.6645224,139.59,139.56,0.66093916]
[1768282950290,0.6645224,139.61,139.57,3.9501494]
[1768282950494,0.6645224,139.61,139.58,0.66093916]
[1768282951590,0.6645224,139.61,139.58,7.82501363]
[1768282955108,3.95373264,139.61,139.58,7.82501363]
[1768282959115,0.6645224,139.61,139.58,7.82501363]
[1768282959619,3.95373264,139.61,139.58,7.82501363]
[1768282960117,0.6645224,139.61,139.58,7.82501363]
[1768282963618,3.28921024,139.62,139.59,0.72445328]
[1768282963801,3.80755424,139.62,139.59,0.66445328]